Cogmind - Beta 9.6 @@@ ROGUE MODE // 2020.05.08 @ 22:47:12 Player: 3.14 Result: Self-destructed Performance ------------- Evolutions (5) 2500 Regions Visited (8) 1600 Robots Destroyed (214) 1070 Value Destroyed (7755) 7755 Prototype IDs (5) 100 Alien Tech Used (0) 0 Bonus (2432) 2432 TOTAL SCORE: 15457 Bonus ------- High Alert Combat Kills 2432 Cogmind --------- Core Integrity 786/1000 Matter 24/300 Energy 450/450 System Corruption 18% Temperature Cool (327) Movement Treading (190) Ox1 Location -5/Factory Parts ------- > --- POWER (3) -------- Reinforced Fission Core Micro Fission Core Micro Fission Core > --- PROPULSION (3) --- Armored Medium Treads Armored Medium Treads Armored Medium Treads > --- UTILITY (9) ------ Advanced Heat Sink Large Storage Unit Large Storage Unit Large Storage Unit Improved Sensor Array Advanced Signal Interpreter Improved Core Analyzer Improved Medium Armor Plating Hacking Suite > --- WEAPON (2) ------- Plasma Cannon > --- INVENTORY (22) --- Fission Core Fission Core Fission Core Improved Treads Advanced Treads Carbon-fiber Leg Carbon-fiber Leg Carbon-fiber Leg Carbon-fiber Leg Improved Sensor Array Advanced Armor Integrity Analyzer Improved Medium Armor Plating Layered Medium Armor Plating Medium Reactive Plating System Backup Module Improved EM Shotgun High-powered Shock Rifle Improved Grenade Launcher Katana Katana Peak State ------------ > --- POWER ------------ Light Angular Momentum Engine Micro Fission Core Micro Fission Core > --- PROPULSION ------- Armored Medium Treads Armored Medium Treads Armored Medium Treads > --- UTILITY ---------- Advanced Heat Sink Advanced Heat Sink Large Storage Unit Large Storage Unit Large Storage Unit Advanced Signal Interpreter Improved Target Analyzer Improved Core Analyzer Medium Reactive Plating > --- WEAPON ----------- Plasma Cannon Plasma Cannon > --- INVENTORY -------- Micro Fission Core Micro Fission Core Improved Treads Advanced Treads Carbon-fiber Leg Carbon-fiber Leg Carbon-fiber Leg Improved Heat Sink Improved Sensor Array Advanced Armor Integrity Analyzer Improved Medium Armor Plating Improved Medium Armor Plating Improved Medium Armor Plating Layered Medium Armor Plating Medium Reactive Plating System Backup Module Improved EM Shotgun Electrolaser EM Pulse Cannon Plasma Cannon Improved Grenade Launcher Katana [Rating: 82] Favorites ----------- Power Improved Deuterium Engine Engine Improved Deuterium Engine Power Core Micro Fission Core Propulsion Aluminum Leg Treads Advanced Treads Leg Aluminum Leg Utility Large Storage Unit Device Improved Heat Sink Storage Large Storage Unit Processor Advanced Signal Interpreter Hackware Hacking Suite Protection Hardened Medium Armor Plating Weapon Advanced Beam Cannon Energy Gun Shock Rifle Energy Cannon Advanced Beam Cannon Ballistic Gun Light Assault Rifle Launcher Improved Grenade Launcher Slashing Weapon Katana Build | -11 -10 -10 -10 -9 -8 -7 -6 -5 ------- Run | Scr Mat Min Exi Min Mat Fac Fac Fac Slots Evolved 10 | . . . . . 4 2 2 2 Power 2 | . . . . . . . 1 1 Propulsion 1 | . . . . . 1 . . . Utility 7 | . . . . . 3 2 1 1 Weapon . | . . . . . . . . . Parts Attached 274 | 7 5 2 . 4 66 86 46 58 Power 22 | 1 1 . . 2 4 2 5 7 Engine 11 | 1 . . . 2 3 1 2 2 Core 11 | . 1 . . . 1 1 3 5 Reactor . | . . . . . . . . . Propulsion 49 | 2 2 . . . 16 14 8 7 Treads 12 | 2 . . . . . . 3 7 Leg 37 | . 2 . . . 16 14 5 . Wheel . | . . . . . . . . . Hover . | . . . . . . . . . Flight . | . . . . . . . . . Utility 93 | 2 2 . . . 15 36 18 20 Device 43 | . . . . . 8 15 7 13 Storage 10 | 2 2 . . . 3 2 . 1 Processor 3 | . . . . . . 1 1 1 Hackware 1 | . . . . . . . . 1 Protection 36 | . . . . . 4 18 10 4 Artifact . | . . . . . . . . . Weapon 110 | 2 . 2 . 2 31 34 15 24 Energy Gun 31 | 1 . . . . 17 1 7 5 Energy Cannon 49 | . . . . . 8 24 4 13 Ballistic Gun 5 | 1 . 2 . 2 . . . . Ballistic Cannon . | . . . . . . . . . Launcher 16 | . . . . . 4 4 3 5 Special Weapon . | . . . . . . . . . Impact Weapon . | . . . . . . . . . Slashing Weapon 9 | . . . . . 2 5 1 1 Piercing Weapon . | . . . . . . . . . Special Melee Weapon . | . . . . . . . . . Unidentified Prototypes 5 | . . . . . 4 1 . . Parts Lost 38 | . . . . 2 11 8 2 15 Power 4 | . . . . 1 1 1 . 1 Propulsion 9 | . . . . . 2 5 . 2 Utility 13 | . . . . . 6 2 1 4 Weapon 12 | . . . . 1 2 . 1 8 Highest Loss Streak 6 | . . . . 2 3 6 1 4 Average Slot Usage (%) 98 | . 100 100 100 97 99 99 98 95 Engine 5 | . 8 . . 13 7 6 1 3 Core 5 | . 5 14 14 . 1 . 11 12 Treads 3 | . 18 . . . . . 2 16 Leg 20 | . 9 28 28 28 26 22 17 . Device 9 | . . . . . 9 13 7 10 Storage 24 | . 28 28 28 28 32 22 20 17 Processor 4 | . . . . . . 3 10 13 Protection 7 | . . . . . 2 12 12 5 Energy Gun 4 | . 14 8 . . 8 . 8 3 Energy Cannon 8 | . . . . . 8 13 4 5 Ballistic Gun 3 | . 14 19 28 25 . . . . Naked Turns . | . . . . . . . . . Heaviest Build 110 | 14 40 40 39 41 84 86 108 110 Greatest Support 81 | 40 40 20 20 20 38 45 66 81 Greatest Overweight (x) 7 | . 1 1 1 2 4 7 3 1 Average Overweight (x) 1 | . . 1 1 1 1 1 1 1 Largest Inventory Capacity 28 | 8 16 16 16 16 28 28 22 22 Average Capacity 21 | 5 8 16 16 16 25 21 22 22 Most Carried 28 | 4 11 15 16 16 28 27 22 22 Average Carried 19 | 2 6 12 15 15 23 21 21 20 Final Capacity 28 | 8 16 16 16 16 28 22 22 22 Final Carried 28 | 4 11 15 16 16 28 21 21 20 Class Distribution -------------------- 47% | Hauler-Mutant 42% | Scavenger-Mutant 10% | Mutant Dominant Class ---------------- Mutant | -10/Materials Mutant | -10/Mines Scavenger-Mutant | -10/Exiles Scavenger-Mutant | -9/Mines Hauler-Mutant | -8/Materials Hauler-Mutant | -7/Factory Scavenger-Mutant | -6/Factory Scavenger-Mutant | -5/Factory Resources | -11 -10 -10 -10 -9 -8 -7 -6 -5 ----------- Run | Scr Mat Min Exi Min Mat Fac Fac Fac Matter Collected 3323 | 272 39 70 . 68 691 1007 508 668 Remotely . | . . . . . . . . . Salvage Created 8963 | 100 97 138 . 183 2221 2657 933 2634 Parts 439 | 1 5 18 . 11 130 118 40 116 Haulers Intercepted 9 | . . . . . 4 2 . 3 Recyclers Shooed 10 | . . 1 . 2 . 1 1 5 Parts Field Recycled . | . . . . . . . . . Retrieved Matter . | . . . . . . . . . Parts Self-Destructed . | . . . . . . . . . Prevented . | . . . . . . . . . Kills | -11 -10 -10 -10 -9 -8 -7 -6 -5 ------- Run | Scr Mat Min Exi Min Mat Fac Fac Fac Combat Hostiles Destroyed 149 | . 2 5 . 2 41 42 16 41 Melee 10 | . . . . . 3 5 1 1 Guns 22 | . 2 3 . 2 13 . 2 . Cannons 60 | . . . . . 15 26 3 16 AOE 41 | . . 2 . . 8 6 7 18 Classes Destroyed 15 | 1 1 4 . 1 3 2 1 2 Worker 17 | . . 1 . . 4 6 1 5 Builder 14 | . . 1 . . 5 3 1 4 Tunneler 2 | . . 1 . . 1 . . . Hauler 9 | . . . . . 4 2 . 3 Recycler 11 | 1 . . . 1 2 3 1 3 Mechanic 2 | . . . . . . . . 2 Operator 1 | . . . . . . . . 1 Watcher 9 | . . . . . 3 3 1 2 Swarmer 24 | . . 5 . . 10 . 4 5 Grunt 74 | . 2 . . . 21 25 4 22 Brawler 2 | . . . . . . . 1 1 Duelist 4 | . . . . . . 2 . 2 Sentry 27 | . . . . 2 9 8 3 5 Hunter 6 | . . . . . 1 1 2 2 Programmer 12 | . . . . . . 6 2 4 Best Kill Streak 16 | 1 1 3 . 1 6 6 4 16 Combat Bots Only 12 | . 1 3 . 1 4 5 3 12 Max Kills in Single Turn 4 | 1 1 1 . 1 3 2 4 3 Gunslinging . | . . . . . . . . . Exploded 3 | . . 1 . . 3 2 3 2 Melee 1 | . . . . . 1 1 1 1 Uniques/NPCs Destroyed . | . . . . . . . . . Combat | -11 -10 -10 -10 -9 -8 -7 -6 -5 -------- Run | Scr Mat Min Exi Min Mat Fac Fac Fac Damage Taken 11149 | . 110 130 . 292 2452 3114 1107 3944 Core 887 | . 14 7 . 32 233 301 86 214 Absorbed by Shields 691 | . . . . . . 276 . 415 Core Remaining (%) 76 | 100 . . . 78 57 57 89 . Volleys Fired 505 | 2 11 21 . 19 145 141 49 117 Largest 2 | 2 2 2 . 2 2 2 2 2 Hottest 160 | 60 60 60 . 40 136 160 160 160 Shots Fired 917 | 4 22 42 . 32 272 260 85 200 Gun 357 | 4 22 42 . 32 162 . 58 37 Cannon 511 | . . . . . 103 252 21 135 Launcher 49 | . . . . . 7 8 6 28 Special . | . . . . . . . . . Kinetic 75 | 2 11 30 . 32 . . . . Thermal 534 | . . . . . 265 213 6 50 Explosive 49 | . . . . . 7 8 6 28 Electromagnetic 259 | 2 11 12 . . . 39 73 122 Robot Hit Streak 22 | 4 5 5 . 19 22 12 14 20 Robot Miss Streak 5 | . 4 3 . 1 4 4 5 3 Penetration Max . | . . . . . . . . . Secondary Targets 3 | . . 1 . 1 1 . . . Max Gunslinging Chain 1 | . . 1 . 1 1 . . . Shots Hit Robots 657 | 4 13 23 . 27 193 180 64 153 Core Hits 386 | 1 6 13 . 8 89 93 37 139 Critical Hits 37 | . . 1 . . 5 15 3 13 Critical Kills 17 | . . . . . 5 5 1 6 Critical Parts Destroyed 18 | . . 1 . . . 9 2 6 Melee Attacks 62 | . . . . . 14 37 5 6 Impact . | . . . . . . . . . Slashing 62 | . . . . . 14 37 5 6 Piercing . | . . . . . . . . . Sneak Attacks 3 | . . . . . 1 1 1 . Combat Hostiles . | . . . . . . . . . Follow-up Attacks . | . . . . . . . . . Damage Inflicted 21717 | 40 126 274 . 222 4573 6127 2215 8140 Guns 3761 | 40 125 186 . 222 2165 . 505 518 Cannons 8309 | . . . . . 1100 4040 495 2674 Explosions 8022 | . . 88 . . 786 1358 1000 4790 Melee 1596 | . . . . . 522 729 215 130 Ramming 29 | . 1 . . . . . . 28 Kinetic 410 | 12 62 114 . 222 . . . . Thermal 9139 | . . 88 . . 3265 3853 368 1565 Explosive 6534 | . . . . . 786 748 773 4227 Electromagnetic 4009 | 28 63 72 . . . 797 859 2190 Impact . | . . . . . . . . . Slashing 1596 | . . . . . 522 729 215 130 Piercing . | . . . . . . . . . Highest Corruption 18 | . . . . . . 8 . 18 Average Corruption 6 | . . . . . . 4 . 9 Corruption Purged 2 | . . . . . . 2 . . Effects 116 | . . . . . . 67 . 49 Message Errors 24 | . . . . . . 16 . 8 Matter Fused 17 | . . . . . . 11 . 6 Heat Flow Errors 12 | . . . . . . 8 . 4 Energy Discharges 9 | . . . . . . 7 . 2 Parts Rejected 1 | . . . . . . . . 1 Data Loss (minor) 11 | . . . . . . 7 . 4 Data Loss (major) 1 | . . . . . . . . 1 Misfires 3 | . . . . . . 2 . 1 Misdirections 1 | . . . . . . . . 1 Targeting Errors 35 | . . . . . . 15 . 20 Weapon Failures 2 | . . . . . . 1 . 1 Overload Shots . | . . . . . . . . . Overflow Damage 484 | . . . . . 112 221 55 96 Projectiles 90 | . . . . . 10 36 29 15 Explosions 371 | . . . . . 79 185 26 81 Melee 23 | . . . . . 23 . . . Knockbacks 1 | . . . . . . . . 1 Impact 1 | . . . . . . . . 1 Kinetic . | . . . . . . . . . Secondary . | . . . . . . . . . Self-Inflicted Damage 466 | . . . . . 214 . . 252 Shots 12 | . . . . . 5 . . 7 Rammed 4 | 1 1 . . . . . . 2 Targets Rammed 4 | 1 1 . . . . . . 2 Kicked . | . . . . . . . . . Crushed . | . . . . . . . . . Highest Temperature 352 | 40 85 84 . 18 246 263 264 352 Average Temperature 70 | 20 35 24 . 10 44 52 77 130 Received Heat Transfer 2842 | . 63 . . 99 972 759 141 808 Effects 8 | . . . . . . 1 1 6 Energy Bleed 2 | . . . . . . 1 1 . Interference 6 | . . . . . . . . 6 Siege Activations . | . . . . . . . . . Robots Corrupted 16 | . . . . . . 4 4 8 Combat Hostiles 13 | . . . . . . 4 3 6 Parts Fried 29 | . . . . . . 7 7 15 Impact Corruptions . | . . . . . . . . . Robots Melted 3 | . . . . . 2 1 . . Combat Hostiles 3 | . . . . . 2 1 . . Parts Melted 21 | . . . . . 9 9 . 3 Heat Transferred 14445 | . . 50 . . 6142 5553 450 2250 Parts Sabotaged . | . . . . . . . . . Parts Stolen . | . . . . . . . . . Parts Stripped . | . . . . . . . . . Power Chain Reactions 14 | . . 2 . . . 2 4 6 Missiles Intercepted . | . . . . . . . . . Alert | -11 -10 -10 -10 -9 -8 -7 -6 -5 ------- Run | Scr Mat Min Exi Min Mat Fac Fac Fac Peak Influence 1628 | 5 103 120 . 40 625 1452 925 1628 Average Influence 502 | 1 56 73 . 35 349 568 801 866 Maximum Alert Level 5 | . . . . . 2 4 3 5 Low Security (%) 21 | 100 100 100 . 100 23 . . . Level 1 25 | . . . . . 31 49 . . Level 2 24 | . . . . . 45 24 . 40 Level 3 19 | . . . . . . 9 100 34 Level 4 9 | . . . . . . 16 . 24 Level 5 . | . . . . . . . . . High Security . | . . . . . . . . . Max Security . | . . . . . . . . . Squads Dispatched 33 | . 2 . . . 7 11 2 11 Investigation 2 | . . . . . . 2 . . Extermination 8 | . . . . . . 5 2 1 Reinforcement 15 | . 2 . . . 6 1 . 6 Assault 6 | . . . . . 1 2 . 3 Garrison 2 | . . . . . . 1 . 1 Intercept . | . . . . . . . . . Construction Impeded 4 | . . . . . 1 . . 3 Haulers Reinforced 1 | . . . . . . 1 . . Stealth | -11 -10 -10 -10 -9 -8 -7 -6 -5 --------- Run | Scr Mat Min Exi Min Mat Fac Fac Fac Distress Signals 13 | . 1 . . . 6 1 . 5 Communications Jammed . | . . . . . . . . . Distress Signals . | . . . . . . . . . Times Spotted 233 | . 6 7 . 2 62 58 27 71 Peak Tracking Total 9 | . 2 2 . 2 5 6 5 9 Tactical Retreats 27 | . . 2 . . 6 5 7 7 Traps | -11 -10 -10 -10 -9 -8 -7 -6 -5 ------- Run | Scr Mat Min Exi Min Mat Fac Fac Fac Traps Triggered 4 | . . . . . . 3 . 1 Indirectly . | . . . . . . . . . Trap Hack Attempts . | . . . . . . . . . Triggered . | . . . . . . . . . Disarmed . | . . . . . . . . . Reprogrammed . | . . . . . . . . . Reused . | . . . . . . . . . Traps Extracted . | . . . . . . . . . Installed . | . . . . . . . . . Triggered . | . . . . . . . . . Machines | -11 -10 -10 -10 -9 -8 -7 -6 -5 ---------- Run | Scr Mat Min Exi Min Mat Fac Fac Fac Machines Disabled 24 | . 1 1 . . 1 10 2 9 Max in Single Turn 3 | . 1 1 . . 1 3 1 3 Garrison Access 3 | . . . . . . 3 . . Machines Sabotaged . | . . . . . . . . . Garrisons Compromised . | . . . . . . . . . Overloaded Fab Kills . | . . . . . . . . . Fab Network Shutdowns . | . . . . . . . . . Hacking | -11 -10 -10 -10 -9 -8 -7 -6 -5 --------- Run | Scr Mat Min Exi Min Mat Fac Fac Fac Machines Accessed 20 | . 2 . 1 1 6 7 2 1 Terminals 12 | . 2 . . 1 5 2 1 1 Fabricators 2 | . . . . . . 2 . . Repair Stations 2 | . . . . . . 1 1 . Recycling Units . | . . . . . . . . . Scanalyzers 1 | . . . . . 1 . . . Garrison Access 2 | . . . . . . 2 . . Total Hacks 57 | . 7 . 1 2 20 13 8 6 Successful 23 | . 2 . 1 1 9 6 2 2 Failed 34 | . 5 . . 1 11 7 6 4 Catastrophic 5 | . . . . 1 1 1 1 1 Database Lockouts . | . . . . . . . . . Manual 37 | . 5 . . 2 17 4 4 5 Terminals 41 | . 7 . . 2 18 4 4 6 Fabricators 4 | . . . . . . 4 . . Repair Stations 6 | . . . . . . 2 4 . Recycling Units . | . . . . . . . . . Scanalyzers 2 | . . . . . 2 . . . Garrison Access 3 | . . . . . . 3 . . Terminal Hacks 9 | . 1 . 1 1 3 . 1 2 Record 2 | . . . 1 . . . . 1 Robot Analysis 2 | . . . . 1 1 . . . Branch Access Points 2 | . . . . . 1 . . 1 Unreport Threat 1 | . . . . . 1 . . . Locate Traps 1 | . . . . . . . 1 . Recall Reinforcements 1 | . 1 . . . . . . . Fabricator Hacks 2 | . . . . . . 2 . . Load Schematic 1 | . . . . . . 1 . . Build 1 | . . . . . . 1 . . Repair Station Hacks 3 | . . . . . . 2 1 . Scan Component 2 | . . . . . . 1 1 . Repair 1 | . . . . . . 1 . . Recycling Unit Hacks . | . . . . . . . . . Scanalyzer 2 | . . . . . 2 . . . Insert Component 1 | . . . . . 1 . . . Analyze 1 | . . . . . 1 . . . Garrison Access Hacks 1 | . . . . . . 1 . . Seal Access 1 | . . . . . . 1 . . Unauthorized Hacks 6 | . 1 . . . 4 1 . . Terminals 5 | . 1 . . . 4 . . . Botnet 5 | . 1 . . . 4 . . . Fabricators . | . . . . . . . . . Repair Stations . | . . . . . . . . . Recycling Units . | . . . . . . . . . Scanalyzers . | . . . . . . . . . Garrison Access 1 | . . . . . . 1 . . Jam 1 | . . . . . . 1 . . Data Cores Recovered . | . . . . . . . . . Used . | . . . . . . . . . Hacking Detections 17 | . 2 . . 1 6 5 2 1 Full Trace Events 2 | . . . . . 1 1 . . Feedback Events . | . . . . . . . . . Feedback Blocked . | . . . . . . . . . Robot Schematics Acquired . | . . . . . . . . . Robots Built . | . . . . . . . . . Matter . | . . . . . . . . . Time . | . . . . . . . . . Total Robot Build Rating . | . . . . . . . . . Part Schematics Acquired 1 | . . . . . 1 . . . Parts Built 1 | . . . . . . 1 . . Matter 234 | . . . . . . 234 . . Time 117 | . . . . . . 117 . . Total Part Build Rating 7 | . . . . . . 7 . . Parts Repaired 1 | . . . . . . 1 . . Time 13 | . . . . . . 13 . . Parts Recycled . | . . . . . . . . . Recycled Matter . | . . . . . . . . . Retrieved Matter . | . . . . . . . . . Retrieved Components . | . . . . . . . . . Parts Scanalyzed 1 | . . . . . 1 . . . Part Schematics Acquired 1 | . . . . . 1 . . . Parts Damaged . | . . . . . . . . . Bothacking | -11 -10 -10 -10 -9 -8 -7 -6 -5 ------------ Run | Scr Mat Min Exi Min Mat Fac Fac Fac Used RIF Installer . | . . . . . . . . . Robots Hacked . | . . . . . . . . . Non-combat . | . . . . . . . . . Combat . | . . . . . . . . . Robot Hacks Applied . | . . . . . . . . . Relay Couplers Released 7 | . . . . . . 7 . . Machine Destruction 3 | . . . . . . 3 . . Programmers 4 | . . . . . . 4 . . Robots Rewired . | . . . . . . . . . Allies Hacked . | . . . . . . . . . Hacks Repelled . | . . . . . . . . . Allies | -11 -10 -10 -10 -9 -8 -7 -6 -5 -------- Run | Scr Mat Min Exi Min Mat Fac Fac Fac Total Allies . | . . . . . . . . . Largest Group . | . . . . . . . . . Highest-Rated Group . | . . . . . . . . . Highest-Rated Ally . | . . . . . . . . . Total Orders . | . . . . . . . . . Ally Attacks . | . . . . . . . . . Total Damage . | . . . . . . . . . Kills . | . . . . . . . . . Allies Corrupted . | . . . . . . . . . Allies Melted . | . . . . . . . . . Intel | -11 -10 -10 -10 -9 -8 -7 -6 -5 ------- Run | Scr Mat Min Exi Min Mat Fac Fac Fac Robot Analysis Total 2 | . . . . 1 1 . . . Derelict Logs Recovered 2 | . . 1 . 1 . . . . Drone Launches . | . . . . . . . . . Drone Recoveries . | . . . . . . . . . Exploration | -11 -10 -10 -10 -9 -8 -7 -6 -5 ------------- Run | Scr Mat Min Exi Min Mat Fac Fac Fac Turns Passed 9312 | 101 340 741 280 280 2009 3339 1030 1192 Spaces Moved 4178 | 52 201 434 187 128 794 1506 460 416 Core 3 | 3 . . . . . . . . Treads 639 | 49 113 . . . . . 61 416 Legs 3536 | . 88 434 187 128 794 1506 399 . Wheels . | . . . . . . . . . Hover . | . . . . . . . . . Flight . | . . . . . . . . . Fastest Speed 50 | 50 120 150 150 150 150 150 150 165 Average Speed 163 | 153 144 150 150 171 168 163 170 175 Slowest Speed 330 | 160 160 150 150 180 240 330 205 190 Overloaded Moves . | . . . . . . . . . Propulsion Burnouts . | . . . . . . . . . Robots Hopped . | . . . . . . . . . Cave-ins Triggered . | . . . . . . . . . Exploration Rate (%) 38 | 5 38 78 60 24 70 41 12 16 Regions Visited 8 Branch Regions 3 Pre-discovered Areas 1 | . . . 1 . . . . . Known Exits Taken 2 | . . . . . . 1 1 . Unknown Exits Taken 6 | 1 1 1 1 1 1 . . . Scrap Searched 2 | . . 1 . 1 . . . . Spaces Dug 70 | . . . . . 21 49 . . Terrain Destroyed 450 | . . 6 . . 67 122 55 200 Melee 6 | . . . . . . 6 . . Projectile 9 | . . . . . 5 3 . 1 AOE 435 | . . 6 . . 62 113 55 199 Actions | -11 -10 -10 -10 -9 -8 -7 -6 -5 --------- Run | Scr Mat Min Exi Min Mat Fac Fac Fac Total 5668 | 66 231 487 187 167 1175 2076 618 661 Wait 315 | . . 27 . . 45 208 11 24 Move 4171 | 52 200 433 186 127 793 1505 459 416 Hop . | . . . . . . . . . Pick Up 172 | 5 9 4 1 9 61 44 18 21 Fast Attach 29 | 6 1 . . . 9 5 6 2 Attach 75 | 1 2 . . 3 21 18 10 20 Detach 2 | . . . . . 1 . 1 . Swap 170 | . 2 2 . 1 36 63 30 36 Drop 164 | . 5 . . 8 50 55 29 17 Fire 505 | 2 11 21 . 19 145 141 49 117 Melee 62 | . . . . . 14 37 5 6 Ram . | . . . . . . . . . Kick . | . . . . . . . . . Crush 3 | . 1 . . . . . . 2 Escape Stasis . | . . . . . . . . . Rewire . | . . . . . . . . . Trap . | . . . . . . . . . Miscellaneous . | . . . . . . . . . Route ------- -11/Scrapyard -10/Materials -10/Mines (discovered 2 exits: [*Mat] / *Exi) -10/Exiles -9/Mines -8/Materials -7/Factory (discovered 3 exits: *Fac / *Sto x2) -6/Factory -5/Factory (discovered 2 exits: Upp x2) History --------- Turn | Location | Event 9 | -11/Scrapyard | Discovered new exit (range 14) 102 | -11/Scrapyard | Entered Materials 346 | -10/Materials | Build established: Mutant 405 | -10/Materials | Discovered new exit (range 9) 442 | -10/Materials | Entered Mines 498 | -10/Mines | Discovered new exit (range 9) 1013 | -10/Mines | Learned Materials garrison access intel 1177 | -10/Mines | Deemed a non-threat by the Exiles lab entrance 1177 | -10/Mines | Discovered new exit (range 5) 1183 | -10/Mines | Entered Exiles 1186 | -10/Exiles | Build established: Scavenger-Mutant 1219 | -10/Exiles | Met 8R-AWN 1246 | -10/Exiles | Met EX-HEX 1318 | -10/Exiles | Met EX-DEC 1353 | -10/Exiles | Met EX-BIN 1377 | -10/Exiles | Learned location of Zion (-7) 1451 | -10/Exiles | Discovered new exit (range 10) 1463 | -10/Exiles | Entered Mines 1663 | -9/Mines | Received a Rocket Launcher from a helpful Derelict 1700 | -9/Mines | Learned Materials terminal intel 1716 | -9/Mines | Discovered new exit (range 12) 1743 | -9/Mines | Entered Materials 1743 | -8/Materials | Evolved 4 slots: Propulsion x1, Utility x3 1744 | -8/Materials | Loaded intel: 12 terminal locations 1745 | -8/Materials | Loaded intel: 1 garrison access location 2511 | -8/Materials | Lost 3 parts (2u1w) 2569 | -8/Materials | Build established: Hauler-Mutant 3632 | -8/Materials | Discovered new exit (range 15) 3743 | -8/Materials | First assault squad dispatched 3752 | -8/Materials | Entered Factory 3752 | -7/Factory | Evolved 2 slots: Utility x2 4540 | -7/Factory | Repaired Lrg. Storage Unit 4834 | -7/Factory | Fabricated Adv. Armor Integrity Analyzer (x1) 5196 | -7/Factory | Build established: Scavenger-Mutant 5204 | -7/Factory | Discovered new exit (range 4) 5219 | -7/Factory | Identified exit to Storage 5578 | -7/Factory | Build established: Hauler-Mutant 6516 | -7/Factory | Garrison activated, responded to threat 6797 | -7/Factory | Lost 6 parts (1p4n1u) 6911 | -7/Factory | Discovered exit to Storage (range 4) 6952 | -7/Factory | First assault squad dispatched 7046 | -7/Factory | Discovered new exit (range 5) 7080 | -7/Factory | Identified exit to Factory 7091 | -7/Factory | Entered another Factory area 7091 | -6/Factory | Evolved 2 slots: Power x1, Utility x1 7375 | -6/Factory | Build established: Scavenger-Mutant 8090 | -6/Factory | Discovered new exit (range 14) 8118 | -6/Factory | Identified exit to Factory 8121 | -6/Factory | Entered another Factory area 8121 | -5/Factory | Evolved 2 slots: Power x1, Utility x1 8421 | -5/Factory | First assault squad dispatched 8524 | -5/Factory | Garrison activated, responded to threat 8618 | -5/Factory | Lost 4 parts (2n1u1w) 8671 | -5/Factory | Destroyed 12 combat bots 8984 | -5/Factory | System corruption reached 10% 9150 | -5/Factory | Destroyed 8 combat bots 9260 | -5/Factory | Identified exit to Upper Caves 9313 | -5/Factory | Self-destructed Last Messages --------------- 09275_ Terminal disabled. 09277_ S-27 Virus destroyed. 09280_ The unstable cave ceiling collapses. 09286_ Acquired 6 matter. 09291_ System corrupted: Energy discharge (-108). 09295_ The unstable cave ceiling collapses. 09299_ Acquired 4 matter. 09300_ Slug penetrates Earth. 09303_ Penetrated by Slug. 09303_ K-01 Serf collects debris. 09306_ Penetrated by Slug. 09307_ K-01 Serf collects debris. 09308_ Penetrated by Slug. 09309_ R-10 Processor collects Lgt. Nuclear Core. 09310_ Fusion Modulator explodes. 09310_ R-10 Processor destroyed. 09310_ Terminal disabled. 09310_ K-01 Serf collects debris. 09311_ Penetrated by Slug. 09311_ Plasma Cannon destroyed. Map ----- +----------------------------------------------------+ | ???????????# ###+############????????????????? | | ???????????# ^ ???????????????? | | ???????????# ???????????????? | | ???????????# ??????????????? | | ???????????# ??????????????? | | ???????????# ! ??????????????? | | ???????????#########/####### #????????????????? | | ??????????????# #????#????????????????? | | ??????????????# #?????????????????????? | | ??????????????# #?????????????????????? | | ??????????????# #????#????????????????? | | ??????????????# """ #? #????????????????? | | ??????????????# """""g # #????????????????? | | ??????????????# """"" # #????????????????? | | ??????????????# # #????????????????? | | ??????????????# """ #Y +######???????????? | | ??????????????# """"" ; ] #???????????? | | ??????????????# """"" = #???????????? | | ??????????????# ;#??????????? | | ??????????????########## ;#??????????? | | ?????????????????????# ; ??????????? | | ?????????????????????## * ! ; #?????????? | | ??????????????????????# !%* ; #?????????? | | ??????????????????????##= ! ; #?????????? | | ??????????????????????##= ;;;; #?????????? | | ??????????????????????# k@ ; ; #??????????? | | ????????????????? w ; #??????????????? | | ????????????????######## # T [ #??????????????? | | ???????????????????????#####?" #??????????????? | | ????????????????????????????? #??????????????? | | ?????????????????????????????? #??????????????? | | ???????????????????????????????####??????????????? | | ?????????????????????????????????????????????????? | | ?????????????????????????????????????????????????? | | ?????????????????????????????????????????????????? | | ?????????????????????????????????????????????????? | | ?????????????????????????????????????????????????? | | ?????????????????????????????????????????????????? | | ?????????????????????????????????????????????????? | | ?????????????????????????????????????????????????? | | ?????????????????????????????????????????????????? | | ?????????????????????????????????????????????????? | | ?????????????????????????????????????????????????? | | ?????????????????????????????????????????????????? | | ?????????????????????????????????????????????????? | | ?????????????????????????????????????????????????? | | ?????????????????????????????????????????????????? | | ?????????????????????????????????????????????????? | | ?????????????????????????????????????????????????? | | ?????????????????????????????????????????????????? | +----------------------------------------------------+ Best States ------------- Heat Dissipation 78 Energy Generation 45 Energy Capacity 450 Matter Stores 300 Matter Capacity 300 Sight Range 16 Robot Scan Range 13 Terrain Scan Density 10 Armor Coverage 600 Resistance: KI 30 Utility Shielding 66 Evasion (%) 40 Target Analysis 6 Core Analysis 8 Recoil Reduction 3 Offensive Hacking 10 Item Schematics ----------------- Adv. Beam Cannon | -8/Materials | Scanalyzed Robot Schematics ------------------ None Fabricated ------------ Adv. Armor Integrity Analyzer | x1 | -7/Factory | Preloaded Alien Tech Used ----------------- None Achievements -------------- None Challenges ------------ None Game ------ Seed HypercooledMappingAutocannon Manual? 0 Play Time 01:01:20 Cumulative 513.6 hours Start 2020.05.08 @ 21:44:11 End 2020.05.08 @ 22:47:12 Sessions 1 Manual Loads 0 Difficulty Rogue Special Mode None Game No. 841 Rogue 841 Adventurer 0 Explorer 0 Win Type - Total 45 Types 30/1/5/7/2/0/0 Lore% 94 Gallery% 93 Achievement% 80 Wizard Run 0 Options --------- ASCII 1 Keyboard 0 Movement Numpad Keybinds 0 Fullscreen 0 Font 14/SmallcapsGlow Map View 76x50 Tactical HUD 1 Map Filters NONE Filters NONE Steam 1 RUN: 588b0ea5-697d-493d-9ce1-8303120b8523